bitfinex-derivatives/quotes_ETHF0:USTF0_20210403
["timestamp","ask_amount","ask_price","bid_price","bid_amount"]
[1617478577833,2.571,2066.5,2066.4,73.69808278]
[1617478578132,2.571,2066.5,2066.4,63.99775]
[1617478578333,2.571,2066.5,2066.4,70.17014062]
[1617478578736,2.571,2066.5,2066.4,64.13936931]
[1617478581839,2.571,2066.5,2066.4,94.13936931]
[1617478582240,2.571,2066.5,2066.4,103.69823663]
[1617478583541,2.571,2066.5,2066.4,73.69823663]
[1617478583740,2.571,2066.5,2066.4,66.26341819]
[1617478584042,2.571,2066.5,2066.4,63.99775]
[1617478586443,2.571,2066.5,2066.4,93.99775]
[1617478586744,2.571,2066.5,2066.4,99.04525978]
[1617478587443,2.571,2066.5,2066.4,93.99775]
[1617478589948,2.571,2066.5,2066.4,100.16642373]
[1617478590147,2.571,2066.5,2066.4,93.99775]
[1617478590549,2.571,2066.5,2066.4,99.0451454]
[1617478592150,2.571,2066.5,2066.4,93.99775]
[1617478592750,2.571,2066.5,2066.4,100.16654222]
[1617478593352,2.571,2066.5,2066.4,93.99775]
[1617478595755,2.571,2066.5,2066.4,35.18125]
[1617478596956,2.571,2066.5,2066.4,40.21788638]
[1617478597854,10.189,2067.7,2066.4,40.21788638]
[1617478598053,10.189,2067.7,2067.4,77.9464]
[1617478598954,10.189,2067.7,2067.6,2.90695]
[1617478599756,2.571,2067.7,2067.6,2.90695]
[1617478601057,2.571,2067.7,2067.4,107.9464]
[1617478601557,2.571,2067.7,2067.4,77.9464]
[1617478603059,2.90695,2067.5,2067.4,77.9464]
[1617478605059,2.90695,2067.5,2067.4,80.85335]
[1617478607462,2.90695,2067.5,2067.4,77.9464]
[1617478607862,2.90695,2067.5,2066.7,30.0]
[1617478608162,2.90695,2067.5,2065.9,1.8235]
[1617478608163,4.93605,2067.5,2066.1,5.02923283]
[1617478608364,4.93605,2067.5,2066.5,79.1467]
[1617478609067,2.90695,2066.6,2066.5,82.05365]
[1617478613069,2.90695,2066.6,2066.5,79.1467]
[1617478615173,2.90695,2066.6,2066.5,82.05365]
[1617478619679,2.90695,2066.6,2066.5,79.1467]
[1617478619879,4.78565,2066.6,2066.5,7.4131877]
[1617478620183,4.78565,2066.6,2066.5,0.14162006]
[1617478620679,4.78565,2066.6,2066.4,6.29559649]
[1617478620879,6.78565,2066.6,2066.4,5.17711056]
[1617478621080,6.78565,2066.6,2066.5,0.14165956]
[1617478622180,6.78565,2066.6,2066.5,5.17715601]
[1617478623082,6.78565,2066.6,2066.5,0.14165956]
[1617478623582,4.90695,2066.6,2066.5,6.29568416]
[1617478623784,4.90695,2066.6,2066.5,0.14165956]
[1617478623983,2.90695,2066.6,2066.5,0.14165956]
[1617478625185,2.90695,2066.6,2066.5,6.29569636]
[1617478626685,2.90695,2066.6,2066.5,0.14165956]
[1617478626985,2.90695,2066.6,2066.5,6.29076557]
[1617478627489,4.571,2067.1,2066.5,2.44745956]
[1617478628087,4.571,2067.1,2067.0,5.03042194]
[1617478628587,4.571,2067.1,2067.0,5.17204278]
[1617478628787,4.571,2067.1,2067.0,2.55842084]
[1617478629187,7.47795,2067.1,2067.0,2.55842084]
[1617478629487,5.47795,2067.1,2067.0,2.55842084]
[1617478629688,5.47795,2067.1,2067.0,8.70636291]
[1617478630490,5.47795,2067.1,2067.0,2.55842084]
[1617478631291,2.571,2067.1,2067.0,5.46537084]
[1617478631991,2.571,2067.1,2067.0,12.72969066]
[1617478633492,2.571,2067.1,2067.0,5.46537084]
[1617478633894,2.571,2067.1,2067.0,12.73123982]
[1617478634796,2.571,2067.1,2067.0,5.46537084]
[1617478635894,2.571,2067.1,2067.0,43.84780252]
[1617478636295,2.571,2067.1,2067.0,35.46537084]
[1617478636495,5.098,2067.7,2067.0,35.46537084]
[1617478636696,13.571,2068.0,2067.0,35.46537084]
[1617478637096,13.571,2068.0,2067.5,39.17577075]
[1617478637301,13.571,2068.0,2067.9,2.90695]
[1617478637302,16.47795,2068.0,2067.9,2.90695]
[1617478637803,16.47795,2068.0,2067.9,3.04850433]
[1617478638004,16.47795,2068.0,2067.9,9.19892907]
[1617478638402,16.47795,2068.0,2067.9,3.04850433]
[1617478638903,16.47795,2068.0,2067.9,0.14155433]
[1617478639304,16.47795,2068.0,2067.9,5.17410614]
[1617478639603,16.47795,2068.0,2067.9,0.14155433]
[1617478640203,18.96975,2068.0,2067.8,0.1415842]
[1617478640403,20.96975,2068.0,2067.9,0.14158382]
[1617478640804,20.96975,2068.0,2067.7,0.1415933]
[1617478641407,20.96975,2068.0,2067.6,0.14158888]
[1617478641808,20.96975,2068.0,2067.5,5.17475956]
[1617478642009,20.96975,2068.0,2067.7,0.14159386]
[1617478642209,18.39875,2068.0,2067.7,0.14159386]
[1617478642409,18.39875,2068.0,2067.5,5.17480664]
[1617478642609,18.39875,2068.0,2067.6,5.03286749]
[1617478642809,18.39875,2068.0,2067.6,5.17444574]
[1617478643012,18.39875,2068.0,2067.7,5.17434929]
[1617478643512,18.39875,2068.0,2067.8,0.14158041]
[1617478644314,15.90695,2068.0,2067.8,5.17732078]
[1617478644614,13.90695,2068.0,2067.9,0.1415668]
[1617478644814,13.90695,2068.0,2067.9,5.17704347]
[1617478645013,13.90695,2068.0,2067.9,0.1415668]
[1617478645515,13.90695,2068.0,2067.9,3.0485168]
[1617478646616,13.90695,2068.0,2067.9,0.1415668]
[1617478646816,13.90695,2068.0,2067.9,6.29570183]
[1617478647018,13.90695,2068.0,2067.9,6.15413503]
[1617478647218,13.90695,2068.0,2067.8,6.15397158]
[1617478647417,13.90695,2068.0,2067.9,3.04850683]
[1617478651320,11.0,2068.0,2067.9,3.04850683]
[1617478654721,11.0,2068.0,2067.9,43.74749977]
[1617478654921,11.0,2068.0,2067.9,33.04850683]
[1617478656526,2.571,2068.9,2067.9,33.04850683]
[1617478656729,1.4227,2068.9,2068.0,2.0]
[1617478656929,7.669,2070.3,2068.9,83.1055]
[1617478657328,7.669,2070.3,2070.1,5.04960928]
[1617478657628,7.669,2070.3,2070.2,5.04952043]
[1617478658028,7.669,2070.3,2070.1,5.04963036]
[1617478659230,7.669,2070.3,2070.0,5.04961895]
[1617478659430,2.90695,2070.1,2070.0,5.04961895]
[1617478659830,2.90695,2070.1,2069.9,6.17171789]
[1617478661935,2.90695,2070.1,2070.0,6.17848218]
[1617478662534,2.90695,2070.1,2069.6,10.20879258]
[1617478662734,2.90695,2070.1,2069.7,7.30166017]
[1617478663437,2.90695,2070.1,2070.0,2.90695]
[1617478667239,7.669,2070.3,2070.0,2.90695]
[1617478667541,2.90695,2070.2,2070.0,2.90695]
[1617478673449,2.90695,2070.2,2070.0,7.94158535]
[1617478673850,5.098,2070.3,2070.1,5.03381781]
[1617478674455,5.098,2070.3,2070.0,7.94081836]
[1617478674855,5.098,2070.3,2070.1,5.03366857]
[1617478675455,5.098,2070.3,2070.0,87.38919687]
[1617478675655,5.098,2070.3,2070.0,84.48224687]
[1617478676257,5.098,2070.3,2070.0,79.4484]
[1617478677557,2.90695,2070.1,2070.0,79.4484]
[1617478677757,2.90695,2070.1,2069.0,5.02894308]
[1617478677957,2.90695,2070.1,2068.9,5.02898827]
[1617478678158,2.90695,2070.1,2069.1,62.0151]
[1617478679558,2.90695,2069.2,2069.1,64.92205]
[1617478679758,2.90695,2069.2,2069.1,2.90695]
[1617478680460,35.098,2070.3,2069.1,2.90695]
[1617478680461,35.098,2070.3,2069.1,10.44539958]
[1617478680661,35.098,2070.3,2069.1,5.41645]
[1617478680860,35.098,2070.3,2070.2,80.7324]
[1617478681562,38.00495,2070.3,2070.2,80.7324]
[1617478682067,38.00495,2070.3,2069.1,5.02919417]
[1617478682266,40.24845,2070.3,2069.0,76.04344725]
[1617478682766,42.24845,2070.3,2069.0,76.04344725]
[1617478683067,42.24845,2070.3,2069.0,71.0141]
[1617478683665,42.24845,2070.3,2068.6,5.03032214]
[1617478683666,2.90695,2069.1,2068.6,2.90695]
[1617478683964,5.16185,2069.1,2068.6,2.90695]
[1617478685170,2.90695,2069.1,2068.6,2.90695]
[1617478685669,32.0,2070.0,2068.9,2.90695]
[1617478686872,32.0,2070.0,2069.5,70.038]
[1617478687772,2.90695,2069.6,2069.5,70.038]
[1617478689276,2.90695,2069.6,2068.9,2.90695]
[1617478689478,35.38495,2069.6,2068.7,5.03048317]
[1617478689676,2.90695,2068.8,2068.7,5.03048317]
[1617478689878,4.69905,2068.8,2068.6,5.03077363]
[1617478690077,4.69905,2068.8,2068.5,7.9378715]
[1617478690479,4.69905,2068.8,2068.5,2.90695]
[1617478690878,4.69905,2068.8,2068.4,5.03099858]
[1617478691680,2.90695,2068.5,2068.4,5.03099858]
[1617478691881,2.90695,2068.5,2068.3,5.03137135]
[1617478692083,2.90695,2068.5,2068.2,5.03147723]
[1617478692580,2.90695,2068.5,2068.1,5.03167099]
[1617478693480,32.90695,2068.5,2068.0,5.0320396]
[1617478693680,32.90695,2068.5,2067.8,6.15027063]
[1617478693681,30.0,2068.5,2068.1,5.03224083]
[1617478693880,30.0,2068.5,2068.1,0.67054083]
[1617478694082,30.0,2068.3,2067.5,6.15130328]
[1617478694283,32.3204,2068.3,2067.4,6.15138612]
[1617478695284,30.0,2068.1,2067.3,6.15151798]
[1617478695684,2.90695,2067.4,2067.2,6.15172493]
[1617478695885,5.27205,2067.4,2067.2,6.15172493]
[1617478696484,5.27205,2067.4,2064.9,11.18596397]
[1617478696485,35.27205,2067.4,2067.1,6.15261985]
[1617478696886,35.27205,2067.4,2066.8,6.15333795]
[1617478697185,35.27205,2067.4,2066.4,7.27212667]
[1617478697186,35.27205,2067.4,2066.7,6.153376]
[1617478697686,2.90695,2066.9,2066.8,6.15071958]
[1617478697886,4.70055,2066.9,2066.7,6.15081513]
[1617478698288,4.70055,2066.9,2066.6,6.15115977]
[1617478698688,4.70055,2066.9,2066.5,6.15121546]
[1617478699688,2.90695,2066.6,2066.5,6.15121546]
[1617478699891,2.90695,2066.6,2065.7,63.02572693]
[1617478699892,2.90695,2066.6,2066.2,7.26941268]
[1617478700090,2.90695,2066.6,2066.5,6.15119347]
[1617478700893,2.90695,2066.6,2065.9,6.14653881]
[1617478701493,2.90695,2066.6,2065.8,6.14674851]
[1617478701694,2.90695,2065.9,2065.8,9.05369851]
[1617478702100,2.90695,2065.9,2065.8,2.90695]
[1617478704498,2.90695,2065.9,2065.8,7.93735545]
[1617478705100,2.90695,2065.9,2065.8,5.03040545]
[1617478705799,2.90695,2065.9,2065.8,7.93735545]
[1617478708198,2.90695,2065.9,2065.8,5.03040545]
[1617478708799,2.90695,2065.9,2065.8,7.17390545]
[1617478709299,2.90695,2065.9,2065.8,2.1435]
[1617478709500,2.571,2066.9,2065.9,67.4475]
[1617478709902,2.90695,2066.0,2065.9,70.35445]
[1617478710200,2.90695,2066.0,2065.9,73.59781333]
[1617478710402,2.90695,2066.0,2065.9,67.4475]
[1617478711601,2.90695,2066.0,2065.9,73.59792288]
[1617478712003,2.90695,2066.0,2065.9,67.4475]
[1617478712402,2.571,2066.9,2065.9,67.4475]
[1617478712704,2.571,2066.9,2065.9,69.0081]
[1617478713504,2.571,2066.9,2065.7,5.02732371]
[1617478713706,2.571,2066.9,2065.4,5.02769708]
[1617478714004,2.571,2066.9,2065.2,8.2509631]
[1617478714005,2.571,2066.9,2065.7,2.90695]
[1617478714404,2.571,2066.9,2065.7,5.12235]
[1617478714805,10.0,2066.0,2065.7,5.12235]
[1617478715807,2.90695,2065.8,2065.7,2.2154]
[1617478716606,10.0,2066.0,2065.7,2.2154]
[1617478719617,12.0367,2066.0,2065.2,5.02751604]
[1617478719812,12.0367,2066.0,2065.1,5.02773855]
[1617478720312,12.0367,2066.0,2064.8,5.02833336]
[1617478721415,12.0367,2066.0,2064.6,66.38364078]
[1617478721416,12.0367,2066.0,2064.7,5.02868915]
[1617478721814,12.0367,2066.0,2064.8,2.90695]
[1617478722616,12.0367,2066.0,2064.8,7.9354628]
[1617478723816,2.90695,2064.9,2064.8,2.90695]
[1617478724417,10.0,2066.0,2064.8,2.90695]
[1617478725819,10.0,2066.0,2065.5,2.90695]
[1617478728022,2.90695,2065.6,2065.5,2.90695]
[1617478728224,10.0,2066.0,2065.5,5.02305]
[1617478728422,10.0,2066.0,2065.5,70.03635]
[1617478730022,2.90695,2065.6,2065.5,70.03635]
[1617478732225,10.0,2066.0,2065.5,70.03635]
[1617478734127,10.0,2066.0,2065.9,2.90695]
[1617478735027,10.0,2066.0,2065.9,32.90695]
[1617478737429,10.0,2066.0,2065.9,37.91664857]
[1617478738631,10.0,2066.0,2065.9,32.90695]
[1617478738829,10.0,2066.0,2065.9,37.91668704]
[1617478739231,10.0,2066.0,2065.9,32.90695]
[1617478740432,10.0,2066.0,2065.9,37.91664257]
[1617478742537,10.0,2066.0,2065.9,32.90695]
[1617478744438,10.0,2066.0,2065.9,39.02941482]
[1617478745440,10.0,2066.0,2065.9,32.90695]
[1617478747542,10.0,2066.0,2065.9,37.91222391]
[1617478748043,10.0,2066.0,2065.9,32.90695]
[1617478749144,10.0,2066.0,2065.9,33.04852734]
[1617478749743,6.6297,2066.0,2065.9,35.04852734]
[1617478749943,4.2313,2066.0,2065.9,35.04852734]
[1617478750142,0.4824,2066.0,2065.9,35.04852734]
[1617478750343,2.571,2066.9,2065.9,35.04852734]
[1617478750544,2.571,2066.9,2066.0,0.14153575]
[1617478750744,5.47795,2068.1,2066.0,2.20853575]
[1617478750944,5.47795,2068.1,2067.2,61.257]
[1617478751245,5.47795,2068.1,2067.8,6.61535466]
[1617478751646,5.47795,2068.1,2068.0,5.0093547]
[1617478751848,2.90695,2068.1,2067.9,6.2639131]
[1617478752045,2.90695,2068.1,2068.0,2.90695]
[1617478752245,2.90695,2068.1,2068.0,9.17083733]
[1617478754251,7.669,2069.4,2068.0,9.17083733]
[1617478754451,7.669,2069.4,2068.5,76.5651]
[1617478755051,7.669,2069.4,2068.6,0.14148515]
[1617478756052,7.669,2069.4,2069.2,2.90695]
[1617478756252,7.669,2069.4,2069.2,5.29315]
[1617478757357,7.669,2069.4,2069.3,0.14147608]
[1617478758258,10.57595,2069.4,2069.3,0.14147608]
[1617478759360,10.57595,2069.4,2069.3,77.29357608]
[1617478760759,10.57595,2069.4,2069.3,77.1521]
[1617478762161,7.669,2069.4,2069.3,77.1521]
[1617478762761,5.098,2069.4,2069.3,77.1521]
[1617478764362,8.00495,2069.4,2069.3,77.1521]
[1617478769470,8.00495,2069.4,2068.5,2.2478]
[1617478769673,8.00495,2069.4,2068.0,69.75717138]
[1617478770171,5.098,2069.4,2068.8,2.90695]
[1617478772175,2.90695,2068.9,2068.3,2.90695]
[1617478774176,5.098,2069.4,2068.3,2.90695]
[1617478774177,2.90695,2068.4,2068.3,2.90695]
[1617478775180,5.098,2069.4,2068.3,5.07065]
[1617478776377,5.098,2069.4,2069.0,2.90695]
[1617478776578,5.098,2069.4,2069.3,76.4253]
[1617478778280,8.00495,2069.4,2069.3,76.4253]
[1617478779991,38.00495,2069.4,2067.6,35.02313258]
[1617478780189,39.87155,2069.4,2067.6,35.02313258]
[1617478780390,36.9646,2069.4,2067.9,73.2293]
[1617478781191,35.098,2069.4,2067.9,73.2293]
[1617478782292,2.0,2069.3,2068.1,2.90695]
[1617478782494,30.0,2069.2,2068.1,2.90695]
[1617478783295,2.0,2069.3,2068.9,80.2669]
[1617478784297,2.90695,2069.0,2068.9,80.2669]
[1617478786405,2.90695,2069.0,2068.7,2.90695]
[1617478786707,2.90695,2069.0,2068.1,5.02510893]
[1617478787308,73.3335,2068.9,2068.1,5.02510893]
[1617478787507,30.0,2068.8,2068.1,5.02510893]
[1617478787707,30.0,2068.8,2067.7,5.02615312]
[1617478788107,75.3335,2068.9,2066.9,55.1501]
[1617478788108,30.0,2068.6,2067.4,5.02651646]
[1617478788408,2.90695,2067.5,2067.2,5.02727101]
[1617478788610,5.28505,2067.5,2067.2,5.02727101]
[1617478788813,61.37655,2067.5,2067.0,5.02765016]
[1617478789213,61.37655,2067.5,2066.8,5.02800408]
[1617478789512,5.28505,2067.5,2066.8,5.02800408]
[1617478790117,5.28505,2067.5,2067.1,60.9668]
[1617478790316,2.90695,2067.2,2067.1,63.87375]
[1617478792115,2.90695,2067.2,2067.1,60.9668]
[1617478794218,2.90695,2067.2,2067.1,67.11314799]
[1617478794620,2.90695,2067.2,2067.1,60.9668]
[1617478796120,4.571,2068.1,2067.1,60.9668]
[1617478796322,4.571,2068.1,2067.3,2.90695]
[1617478796722,4.571,2068.1,2067.6,5.0284739]
[1617478797923,4.571,2068.1,2067.5,5.02861644]
[1617478798324,2.90695,2067.6,2067.5,5.02861644]
[1617478798826,2.90695,2067.6,2067.4,6.14609347]
[1617478800528,2.571,2068.1,2067.5,5.00555]
[1617478801228,2.571,2068.1,2067.9,6.14473303]
[1617478801428,2.571,2068.1,2068.0,6.1445504]
[1617478801627,2.571,2068.1,2068.0,8.5903504]
[1617478802327,2.571,2068.1,2068.0,11.4973004]
[1617478802730,2.90695,2068.3,2068.0,11.4973004]
[1617478803237,2.90695,2068.3,2068.1,6.14219901]
[1617478803931,9.618,2069.8,2068.8,58.1338]
[1617478804431,2.90695,2068.9,2068.8,58.1338]
[1617478805130,2.90695,2068.9,2068.8,1.8579]
[1617478805533,2.90695,2068.9,2068.8,6.88341641]
[1617478806234,2.90695,2068.9,2068.8,1.8579]
[1617478806640,2.90695,2068.9,2068.8,7.99957218]
[1617478807335,2.90695,2068.9,2068.8,1.8579]
[1617478807735,2.90695,2068.9,2068.8,7.99962459]
[1617478809936,0.4123,2069.0,2068.9,73.7463]
[1617478810137,5.098,2069.8,2068.9,73.7463]
[1617478810336,7.669,2069.8,2068.9,73.7463]
[1617478810536,7.669,2069.8,2069.7,2.90695]
[1617478810737,7.669,2069.8,2069.7,4.90985]
[1617478811636,7.669,2069.8,2069.7,9.9333203]
[1617478811837,44.716,2071.3,2069.8,57.1413]
[1617478812537,2.90695,2069.9,2069.8,57.1413]
[1617478813339,2.90695,2069.9,2069.8,62.16460085]
[1617478813741,2.90695,2069.9,2069.8,57.1413]
[1617478815440,2.90695,2069.9,2069.8,62.16882785]
[1617478817948,2.90695,2069.9,2069.8,57.1413]
[1617478820855,30.0,2070.9,2069.8,57.1413]
[1617478821258,32.0,2071.1,2069.8,57.1413]
[1617478821557,32.0,2071.1,2069.8,62.16827828]
[1617478822156,32.0,2071.1,2069.9,5.02693864]
[1617478822457,32.0,2071.1,2069.8,62.16824192]
[1617478822656,2.90695,2069.9,2069.8,62.16824192]
[1617478823558,2.90695,2069.9,2069.8,57.1413]
[1617478825960,2.90695,2069.9,2069.8,62.16929421]
[1617478827459,5.02335,2069.9,2069.8,5.02799421]
[1617478827863,5.02335,2069.9,2069.7,5.02847918]
[1617478828361,5.02335,2069.9,2069.1,7.26257443]
[1617478828362,5.02335,2069.9,2069.1,5.02963857]
[1617478828562,35.02335,2069.9,2069.1,5.02963857]
[1617478828866,35.02335,2069.9,2068.9,7.9367685]
[1617478828867,4.52375,2069.2,2068.9,7.9367685]
[1617478829262,1.6168,2069.2,2068.9,7.9367685]
[1617478829462,1.6168,2069.2,2069.0,5.02957872]
[1617478830466,1.6168,2069.2,2068.9,7.93680272]
[1617478830966,4.52375,2069.2,2068.9,7.93680272]
[1617478831167,4.52375,2069.2,2068.9,5.02985272]
[1617478831868,4.52375,2069.2,2068.4,76.8833]
[1617478831869,4.52375,2069.2,2068.6,5.03037612]
[1617478832267,2.90695,2069.2,2068.6,5.03037612]
[1617478832867,2.90695,2069.2,2069.1,2.90695]
[1617478834272,2.571,2069.9,2069.1,7.93626818]
[1617478834571,2.571,2069.9,2069.6,56.8015]
[1617478834771,2.90695,2069.7,2069.6,56.8015]
[1617478837475,2.571,2069.9,2069.6,56.8015]
[1617478837874,2.0,2070.8,2069.6,56.8015]
[1617478838680,4.571,2070.8,2069.6,56.8015]
[1617478838980,4.571,2070.8,2070.1,2.90695]
[1617478839180,4.571,2070.8,2070.4,54.9402]
[1617478840784,2.90695,2070.5,2070.4,54.9402]
[1617478847490,2.90695,2070.5,2070.2,2.90695]
[1617478847790,2.571,2070.8,2070.5,72.4403]
[1617478848690,2.571,2070.8,2070.5,62.4403]
[1617478848890,2.571,2070.8,2070.7,2.90695]
[1617478853097,2.90695,2071.0,2070.7,2.90695]
[1617478853599,2.90695,2071.0,2070.9,5.02439924]
[1617478853998,2.90695,2071.0,2070.8,5.02436096]
[1617478855000,2.90695,2071.0,2070.9,5.02432913]
[1617478857705,5.098,2071.3,2070.9,5.02432913]
[1617478858408,5.098,2071.3,2071.0,5.02418273]
[1617478858808,5.098,2071.3,2071.1,2.90695]
[1617478860011,5.098,2071.3,2070.9,5.02418032]
[1617478860410,7.5639,2071.3,2070.9,5.02418032]
[1617478860811,7.5639,2071.3,2070.4,2.26176782]
[1617478860812,2.90695,2071.0,2070.6,5.02501295]
[1617478861112,2.90695,2071.0,2070.5,5.02522284]
[1617478861511,2.90695,2071.0,2070.4,5.02598116]
[1617478861811,2.90695,2071.0,2070.3,5.02328207]
[1617478862111,2.90695,2071.0,2070.2,7.93036389]
[1617478862311,2.90695,2071.0,2070.2,5.02341389]
[1617478862810,2.90695,2070.3,2070.2,5.02341389]
[1617478863011,5.16405,2070.3,2070.2,5.02341389]
[1617478863311,5.16405,2070.3,2070.2,5.1648195]
[1617478863514,5.16405,2070.3,2070.2,0.14140561]
[1617478864216,5.16405,2070.3,2070.2,5.16490321]
[1617478868621,2.90695,2070.3,2070.2,0.14140561]
[1617478868821,7.098,2071.3,2070.8,78.7484]
[1617478869321,7.098,2071.3,2070.9,0.1413795]
[1617478870323,7.098,2071.3,2070.9,5.16305269]
[1617478870922,7.098,2071.3,2071.0,3.04830585]
[1617478871423,7.098,2071.3,2071.1,0.14135442]
[1617478872928,7.098,2071.3,2071.1,5.16106456]
[1617478872929,5.098,2071.3,2071.1,5.16106456]
[1617478873125,5.098,2071.3,2071.2,7.45686506]
[1617478873326,2.90695,2071.6,2071.2,7.45686506]
[1617478873526,2.90695,2071.6,2071.2,2.57763099]
[1617478873726,7.098,2072.9,2071.2,2.57763099]
[1617478873926,7.098,2072.9,2071.3,5.16142531]
[1617478874130,7.098,2072.9,2071.6,5.01979946]
[1617478874131,9.669,2072.9,2071.6,5.01979946]
[1617478874529,9.669,2072.9,2072.2,62.0378]
[1617478874829,9.669,2072.9,2072.2,64.5391]
[1617478875029,2.90695,2072.3,2072.2,64.5391]
[1617478883341,2.90695,2072.3,2072.2,8.66146705]
[1617478883640,2.90695,2072.3,2072.1,6.16021724]
[1617478884942,2.90695,2072.3,2072.2,5.04054391]
[1617478885241,2.90695,2072.3,2071.9,5.04107538]
[1617478885644,2.0,2072.2,2071.9,5.04107538]
[1617478885943,2.0,2072.2,2071.8,5.04128727]
[1617478886546,32.0,2072.2,2071.8,5.04128727]
[1617478886744,33.7898,2072.2,2071.8,5.04128727]
[1617478886945,33.7898,2072.2,2071.7,5.04174124]
[1617478887147,2.90695,2071.8,2071.7,5.04174124]
[1617478887347,2.90695,2071.8,2071.6,5.04176735]
[1617478888751,2.90695,2071.8,2071.5,5.04182657]
[1617478889350,2.0,2071.7,2071.5,5.04182657]
[1617478889550,34.3828,2071.7,2071.5,5.04182657]
[1617478889750,34.3828,2071.7,2071.4,5.04222591]
[1617478890050,34.3828,2071.7,2071.1,6.16300049]
[1617478890852,34.3828,2071.7,2071.0,6.16306023]
[1617478891251,2.90695,2071.1,2071.0,6.16306023]
[1617478891851,2.90695,2071.1,2070.6,7.28358966]
[1617478892852,2.90695,2071.1,2070.7,7.28356707]
[1617478893253,2.90695,2070.8,2070.7,7.28356707]
[1617478893554,2.90695,2070.8,2070.6,7.2837512]
[1617478894154,2.90695,2070.8,2070.7,0.14137511]
[1617478894857,2.90695,2070.8,2070.6,0.14137541]
[1617478899363,15.571,2071.7,2070.7,5.31875]
[1617478899765,15.571,2071.7,2070.8,0.14134881]
[1617478900264,15.571,2071.7,2071.3,10.32107417]
[1617478900868,15.571,2071.7,2071.4,0.1413348]
[1617478901366,15.571,2071.7,2071.6,2.90695]
[1617478903373,15.90695,2071.7,2071.6,2.90695]
[1617478903872,15.90695,2071.7,2071.6,3.04828103]
[1617478904173,13.0,2071.7,2071.6,11.4720052]
[1617478904572,13.0,2071.7,2071.6,3.04828103]
[1617478905174,13.0,2071.7,2071.6,11.47264411]
[1617478905374,15.90695,2071.7,2071.6,8.56569411]
[1617478905575,15.90695,2071.7,2071.6,0.14133103]
[1617478906677,15.90695,2071.7,2071.5,0.14132548]
[1617478907377,15.90695,2071.7,2071.6,2.90695]
[1617478907977,15.90695,2071.7,2071.6,3.04825936]
[1617478908179,15.90695,2071.7,2071.6,11.47090252]
[1617478908679,15.90695,2071.7,2071.6,3.04825936]
[1617478911987,15.90695,2071.7,2071.6,11.47098929]
[1617478912283,15.90695,2071.7,2071.6,3.04825936]
[1617478914686,15.90695,2071.7,2071.6,0.14130936]
[1617478915890,15.90695,2071.7,2071.6,8.56397696]
[1617478916091,15.90695,2071.7,2071.6,0.14130936]
[1617478919295,15.90695,2071.7,2071.5,0.14132357]
[1617478919696,15.90695,2071.7,2071.6,7.29841686]
[1617478919994,15.90695,2071.7,2071.5,7.2987378]
[1617478920396,15.90695,2071.7,2071.4,7.29887564]
[1617478922498,15.90695,2071.7,2071.3,7.29932593]
[1617478922997,45.90695,2071.7,2071.3,7.29932593]
[1617478923399,2.90695,2071.4,2071.3,7.29932593]
[1617478923799,2.90695,2071.4,2071.2,7.29927488]
[1617478924200,2.90695,2071.4,2071.3,0.14131885]
[1617478924601,2.90695,2071.4,2071.3,1.70641885]
[1617478925202,13.0,2071.7,2071.3,1.70641885]
[1617478925403,15.90695,2071.7,2071.6,2.90695]
[1617478925702,15.90695,2071.7,2071.6,11.46754266]
[1617478925902,13.0,2071.7,2071.6,11.46754266]
[1617478926404,13.0,2071.7,2071.6,3.04825112]
[1617478927805,13.0,2071.7,2071.6,12.59613425]
[1617478928005,13.0,2071.7,2071.6,42.59613425]
[1617478928205,10.2453,2071.7,2071.6,42.59613425]
[1617478928405,9.5223,2071.7,2071.6,33.04825112]
[1617478928605,1.0658,2071.7,2071.6,33.04825112]
[1617478928905,7.669,2072.9,2071.6,33.04825112]
[1617478929405,7.669,2072.9,2072.8,11.32910696]
[1617478929609,7.669,2072.9,2072.8,13.77750696]
[1617478930307,7.669,2072.9,2072.8,13.91873445]
[1617478930506,7.669,2072.9,2072.8,5.49657749]
[1617478931708,13.0,2073.1,2072.8,5.49657749]
[1617478931908,13.0,2073.1,2072.8,35.49657749]
[1617478932210,13.0,2073.1,2072.9,0.14121014]
[1617478932709,13.0,2073.1,2073.0,9.54258938]
[1617478932909,13.0,2073.1,2073.0,39.54258938]
[1617478933110,13.0,2073.1,2073.0,113.76810655]
[1617478933310,13.0,2073.1,2073.0,30.14120655]
[1617478933510,13.0,2073.1,2073.0,44.76717697]
[1617478933711,13.0,2073.1,2073.0,39.68384235]
[1617478934112,13.0,2073.1,2073.0,30.14120655]
[1617478935013,13.0,2073.1,2073.0,39.68342195]
[1617478935213,13.0,2073.1,2073.0,30.14120655]
[1617478936919,10.7369,2073.1,2073.0,30.14120655]
[1617478937119,2.571,2074.1,2073.0,30.14120655]
[1617478937321,2.571,2074.1,2073.1,0.14116394]
[1617478937520,2.571,2074.1,2074.0,2.90695]
[1617478937721,5.47795,2074.8,2074.0,4.99065]
[1617478937922,5.47795,2074.8,2074.0,13.40776768]
[1617478938122,5.47795,2074.8,2074.5,7.2947249]
[1617478938321,5.47795,2074.8,2074.5,9.5153249]
[1617478938621,5.47795,2074.8,2074.6,7.29471118]
[1617478938821,5.47795,2074.8,2074.5,9.51519698]
[1617478939121,5.47795,2074.8,2074.5,2.2206]
[1617478939624,5.47795,2074.8,2074.7,2.90695]
[1617478941427,2.571,2074.8,2074.7,2.90695]
[1617478942432,2.571,2074.8,2074.7,32.90695]
[1617478942630,0.1185,2074.8,2074.7,32.90695]
[1617478942833,7.618,2077.0,2074.7,32.90695]
[1617478942834,32.0,2077.0,2074.7,32.90695]